fUST/lending_fUST_20251213
["ID","MTS","AMOUNT","RATE_DAILY","PERIOD"]
[398384407,1765565432545,-1651.42430767,0.00012771,2]
[398384409,1765565432554,-601.0,0.00012771,2]
[398384411,1765565432563,-1909.8,0.00012829,2]
[398384413,1765565432572,-300.0,0.00012899,2]
[398384415,1765565432582,-10546.42583316,0.000129,2]
[398384417,1765565432591,-1936.01719476,0.00013004,2]
[398384419,1765565432600,-500.0,0.0001316,2]
[398384421,1765565432610,-502.17591365,0.0001316,2]
[398384423,1765565432619,-500.0,0.0001316,2]
[398384425,1765565432628,-500.0,0.0001316,2]
[398384427,1765565432637,-500.0,0.00013273,2]
[398384429,1765565432646,-500.0,0.00013273,2]
[398384431,1765565432656,-500.0,0.00013273,2]
[398384433,1765565432665,-500.0,0.00013273,2]
[398384435,1765565432674,-500.0,0.00013273,2]
[398384437,1765565432684,-500.0,0.00013273,2]
[398384439,1765565432693,-500.0,0.00013273,2]
[398384441,1765565432702,-500.0,0.00013273,2]
[398384443,1765565432711,-500.0,0.00013273,2]
[398384445,1765565432720,-500.0,0.00013273,2]
[398384447,1765565432730,-3079.84558285,0.00013375,2]
[398384449,1765565432739,-669.88618936,0.00013421,2]
[398384451,1765565432748,-267.85726964,0.00013421,2]
[398384453,1765565432757,-1699.0,0.00013421,2]
[398384455,1765565432766,-574.12855637,0.00013421,2]
[398384457,1765565432776,-250.0,0.00013421,2]
[398384459,1765565432785,-250.0,0.00013421,2]
[398384461,1765565432795,-250.0,0.00013421,2]
[398384463,1765565432804,-1000.0,0.00013421,2]
[398384465,1765565432813,-78.71823491,0.00013421,2]
[398384468,1765565432826,-171.28176509,0.00013421,2]
[398384485,1765565432980,-250.0,0.00013421,2]
[398384487,1765565432993,-354.50333089,0.00013421,2]
[398384489,1765565433003,-250.0,0.00013421,2]
[398384491,1765565433012,-166.21149658,0.00013421,2]
[398384677,1765565438596,-83.78850342,0.00013421,2]
[398384679,1765565438607,-500.0,0.00013421,2]
[398384681,1765565438616,-250.0,0.00013421,2]
[398384683,1765565438626,-500.0,0.00013421,2]
[398384685,1765565438635,-105.75519861,0.00013421,2]
[398384687,1765565438654,-144.24480139,0.00013421,2]
[398384689,1765565438663,-198.08549708,0.00013421,2]
[398384691,1765565438675,-301.91450292,0.00013421,2]
[398384693,1765565438684,-250.0,0.00013421,2]
[398384695,1765565438694,-250.0,0.00013421,2]
[398384697,1765565438703,-500.0,0.00013421,2]
[398384699,1765565438713,-250.0,0.00013421,2]
[398384701,1765565438722,-31.87563425,0.00013421,2]
[398384702,1765565438733,-468.12436575,0.00013421,2]
[398384704,1765565438743,-500.0,0.00013421,2]
[398384706,1765565438753,-250.0,0.00013421,2]
[398384708,1765565438763,-250.0,0.00013421,2]
[398384710,1765565438774,-500.0,0.00013421,2]
[398384712,1765565438784,-250.0,0.00013421,2]
[398384714,1765565438794,-500.0,0.00013421,2]
[398384716,1765565438803,-250.0,0.00013421,2]
[398384718,1765565438813,-500.0,0.00013421,2]
[398384719,1765565438822,-475.0,0.00013587,2]
[398384721,1765565438832,-475.0,0.00013587,2]
[398384723,1765565438841,-475.0,0.00013587,2]
[398384725,1765565438851,-475.0,0.00013587,2]
[398384727,1765565438860,-475.0,0.00013587,2]
[398384729,1765565438872,-475.0,0.00013587,2]
[398384731,1765565438881,-475.0,0.00013587,2]
[398384732,1765565438891,-475.0,0.00013587,2]
[398384734,1765565438901,-475.0,0.00013587,2]
[398384736,1765565438912,-475.0,0.00013587,2]
[398384738,1765565438923,-475.0,0.00013587,2]
[398384740,1765565438933,-475.0,0.00013587,2]
[398384742,1765565438942,-196.94,0.00013587,2]
[398384744,1765565438952,-721.56679946,0.00013589,2]
[398384746,1765565438964,-8521.48824223,0.0001365,2]
[398384846,1765565444025,-694.0900242,0.00013287,2]
[398384854,1765565446656,-1097.428497,0.00013287,2]
[398384856,1765565498715,150.0,7.008e-05,2]
[398384857,1765565499125,185.83,7.645e-05,2]
[398384858,1765565499534,278.74,8.282e-05,2]
[398384859,1765565578638,150.0,7.035e-05,2]
[398384860,1765565579041,170.18,7.674e-05,2]
[398384861,1765565579443,255.28,8.314e-05,2]
[398384862,1765565657459,150.0,6.995e-05,2]
[398384863,1765565657848,155.54,7.631e-05,2]
[398384864,1765565658260,233.31,8.267e-05,2]
[398384865,1765565738544,150.0,7.541e-05,2]
[398384866,1765565738952,150.0,8.226e-05,2]
[398384867,1765565819409,150.0,7.549e-05,2]
[398384868,1765565819853,150.0,8.236e-05,2]
[398384869,1765565900497,150.0,7.538e-05,2]
[398384870,1765565900898,150.0,8.224e-05,2]
[398384872,1765565978498,150.0,7.537e-05,2]
[398384873,1765565978921,150.0,8.223e-05,2]
[398384874,1765566054939,150.0,6.958e-05,2]
[398384875,1765566055352,150.0,7.59e-05,2]
[398384876,1765566055952,166.91,8.223e-05,2]
[398384877,1765566133284,150.0,6.905e-05,2]
[398384878,1765566133535,150.0,7.533e-05,2]
[398384879,1765566134284,150.0,8.16e-05,2]
[398384881,1765566210611,150.0,6.913e-05,2]
[398384882,1765566211015,150.0,7.541e-05,2]
[398384883,1765566211904,150.0,8.17e-05,2]
[398384885,1765566227266,5000.0,8.56e-05,2]
[398384886,1765566288060,150.0,7.519e-05,2]
[398384887,1765566288377,150.0,8.202e-05,2]
[398384888,1765566364953,150.0,8.083e-05,2]
[398384889,1765566400089,-313.72046547,8.685e-05,2]
[398384890,1765566425084,-180.85614244,8.685e-05,2]
[398384891,1765566438237,150.0,7.556e-05,2]
[398384892,1765566438656,150.0,8.242e-05,2]
[398384893,1765566449997,5000.0,8.56e-05,2]
[398384894,1765566450134,-543.0,8.774e-05,2]
[398384895,1765566450159,-194.77,8.929e-05,2]
[398384896,1765566450182,-229.84674708,9.277e-05,2]
[398384897,1765566450205,-259.69,9.616e-05,2]
[398384898,1765566450224,-691.31221521,0.00010249,2]
[398384899,1765566450244,-324.61,0.00010303,2]
[398384900,1765566450269,-177.0,0.00010729,2]
[398384901,1765566450290,-389.53,0.0001099,2]
[398384902,1765566450311,-767.90172312,0.00011473,2]
[398384903,1765566480014,175.22,8.551e-05,2]
[398384904,1765566480335,175.2,8.551e-05,2]
[398384906,1765566515877,150.0,7.085e-05,2]
[398384907,1765566516291,150.0,7.729e-05,2]
[398384908,1765566516698,150.0,8.373e-05,2]
[398384909,1765566553327,-184.92,9.017e-05,2]
[398384910,1765566553349,-231.15,9.661e-05,2]
[398384911,1765566553372,-277.38,0.00010305,2]
[398384912,1765566553395,-323.61,0.00010949,2]
[398384913,1765566553414,-5000.0,0.00011358,2]
[398384914,1765566553438,-432.09827688,0.00011473,2]
[398384915,1765566553459,-691.31221521,0.00011474,2]
[398384916,1765566553481,-369.85,0.00011593,2]
[398384917,1765566553502,-300.0,0.00011999,2]
[398384918,1765566553522,-2558.69961348,0.00012,2]
[398384919,1765566553542,-314.70030715,0.00012055,2]
[398384920,1765566553563,-559.46721272,0.00012055,2]
[398384921,1765566553585,-174.83350397,0.00012055,2]
[398384922,1765566553606,-275.87252194,0.00012055,2]
[398384923,1765566553629,-416.08,0.00012238,2]
[398384924,1765566553650,-229.84674708,0.00012266,2]
[398384925,1765566553673,-347.02309816,0.00012698,2]
[398384926,1765566591699,150.0,7.136e-05,2]
[398384927,1765566591915,150.0,7.785e-05,2]
[398384928,1765566592796,150.0,8.434e-05,2]
[398384978,1765566631971,-150.0,9.082e-05,2]
[398384979,1765566631981,-547.0,9.082e-05,2]
[398384980,1765566631990,-150.0,9.731e-05,2]
[398384981,1765566631999,-150.0,0.0001038,2]
[398384982,1765566632009,-3.0,0.00011029,2]
[398384983,1765566632033,-147.0,0.00011029,2]
[398384984,1765566632042,-150.0,0.00011677,2]
[398384985,1765566632052,-158.01,0.00012326,2]
[398384986,1765566632061,-177.1533785,0.00012571,2]
[398385004,1765566637673,-4023.56816462,0.00012571,2]
[398385007,1765566637684,-799.27845688,0.00012571,2]
[398385008,1765566637694,-150.0,0.00012634,2]
[398385011,1765566637704,-344.28911705,0.00012698,2]
[398385013,1765566637714,-500.0,0.0001306,2]
[398385015,1765566637722,-500.0,0.0001306,2]
[398385016,1765566637732,-300.0,0.00013197,2]
[398385036,1765566637902,-500.0,0.00013273,2]
[398385038,1765566637913,-500.0,0.00013273,2]
[398385040,1765566637922,-500.0,0.00013273,2]
[398385042,1765566637932,-500.0,0.00013273,2]
[398385044,1765566637941,-500.0,0.00013273,2]
[398385046,1765566637950,-500.0,0.00013273,2]
[398385047,1765566637959,-500.0,0.00013273,2]
[398385049,1765566637968,-500.0,0.00013273,2]
[398385051,1765566637977,-500.0,0.00013273,2]
[398385053,1765566637987,-500.0,0.00013273,2]
[398385055,1765566637995,-500.0,0.00013273,2]
[398385057,1765566638005,-500.0,0.00013273,2]
[398385059,1765566638014,-500.0,0.00013273,2]
[398385061,1765566638023,-500.0,0.00013273,2]
[398385063,1765566638033,-500.0,0.00013273,2]
[398385065,1765566638042,-500.0,0.00013273,2]
[398385067,1765566638052,-500.0,0.00013273,2]
[398385069,1765566638061,-500.0,0.00013273,2]
[398385071,1765566638071,-500.0,0.00013273,2]
[398385073,1765566638080,-500.0,0.00013273,2]
[398385075,1765566638090,-500.0,0.00013273,2]
[398385077,1765566638100,-1699.0,0.00013297,2]
[398385078,1765566638110,-1000.0,0.00013297,2]
[398385079,1765566638119,-196.43965558,0.00013523,2]
[398385080,1765566638129,-500.0,0.00013523,2]
[398385081,1765566638139,-500.0,0.00013523,2]
[398385082,1765566638149,-592.44064842,0.00013523,2]
[398385083,1765566638159,-293.56898196,0.00013523,2]
[398385084,1765566638169,-334.97619169,0.00013523,2]
[398385085,1765566638179,-500.0,0.00013523,2]
[398385086,1765566638189,-500.0,0.00013523,2]
[398385087,1765566638199,-500.0,0.00013523,2]
[398385088,1765566638208,-500.0,0.00013523,2]
[398385089,1765566638218,-439.80924632,0.00013523,2]
[398385090,1765566638228,-44143.4414554,0.00013524,2]
[398385091,1765566638237,-2758.0547223,0.00013524,2]
[398385092,1765566638247,-574.12855637,0.00013592,2]
[398385093,1765566638257,-500.0,0.00013592,2]
[398385094,1765566638266,-500.0,0.00013592,2]
[398385095,1765566638275,-500.0,0.00013592,2]
[398385096,1765566638285,-500.0,0.00013592,2]
[398385097,1765566638294,-500.0,0.00013592,2]
[398385098,1765566638303,-500.0,0.00013592,2]
[398385099,1765566638314,-500.0,0.00013592,2]
[398385100,1765566638323,-500.0,0.00013592,2]
[398385101,1765566638336,-500.0,0.00013592,2]
[398385102,1765566638346,-500.0,0.00013592,2]
[398385103,1765566638357,-500.0,0.00013592,2]
[398385104,1765566638367,-250.0,0.00013592,2]
[398385105,1765566638377,-250.0,0.00013592,2]
[398385106,1765566638387,-250.0,0.00013592,2]
[398385107,1765566638397,-250.0,0.00013592,2]
[398385108,1765566638408,-246.33193494,0.00013592,2]
[398385109,1765566638418,-299.88387086,0.00013599,2]
[398385110,1765566638428,-96993.42973831,0.000136,2]
[398385127,1765566639830,-1428.66,0.000136,2]
[398385130,1765566639842,-1644.34020353,0.000136,2]
[398385135,1765566639884,-18165.2917058,0.000136,2]
[398385137,1765566639895,-721.77980252,0.000136,2]
[398385199,1765566642942,-911.53219827,0.000136,2]
[398385200,1765566642954,-509.13418671,0.000136,2]
[398385202,1765566645943,-46319.77281872,0.000136,2]
[398385203,1765566646142,-397.51785393,0.000136,2]
[398385204,1765566646154,-16658.91043492,0.000136,2]
[398385213,1765567639090,-284.09086103,0.00012622,2]
[398385247,1765567831849,-230.53628732,0.000125,2]
[398385249,1765567831859,-150.0,0.00012879,2]
[398385251,1765567831869,-300.0,0.00013272,2]
[398385253,1765567831878,-500.0,0.00013273,2]
[398385255,1765567831887,-481.7502719,0.00013273,2]
[398385256,1765567831897,-500.0,0.00013273,2]
[398385257,1765567831907,-500.0,0.00013273,2]
[398385258,1765567831916,-500.0,0.00013273,2]
[398385259,1765567831925,-500.0,0.00013273,2]
[398385260,1765567831935,-500.0,0.00013273,2]
[398385261,1765567831944,-500.0,0.00013273,2]
[398385262,1765567831953,-500.0,0.00013273,2]
[398385263,1765567831962,-263.64947344,0.00013273,2]
[398385264,1765567831974,-236.35052656,0.00013273,2]
[398385265,1765567831983,-500.0,0.00013273,2]
[398385266,1765567831992,-500.0,0.00013273,2]
[398385267,1765567832002,-500.0,0.00013273,2]
[398385268,1765567832012,-128.12583456,0.00013273,2]
[398385269,1765567832023,-371.87416544,0.00013273,2]
[398385270,1765567832032,-500.0,0.00013273,2]
[398385271,1765567832042,-500.0,0.00013273,2]
[398385272,1765567832051,-500.0,0.00013273,2]
[398385273,1765567832061,-500.0,0.00013273,2]
[398385274,1765567832070,-500.0,0.00013273,2]
[398385275,1765567832080,-500.0,0.00013273,2]
[398385276,1765567832089,-500.0,0.00013273,2]
[398385277,1765567832098,-500.0,0.00013278,2]
[398385278,1765567832108,-500.0,0.00013331,2]
[398385279,1765567832118,-150.0,0.00013532,2]
[398385280,1765567832127,-150.0,0.00013532,2]
[398385281,1765567832136,-150.0,0.00013532,2]
[398385282,1765567832146,-150.0,0.00013532,2]
[398385283,1765567832155,-150.0,0.00013532,2]
[398385284,1765567832165,-150.0,0.00013532,2]
[398385285,1765567832175,-150.0,0.00013532,2]
[398385286,1765567832184,-500.0,0.00013532,2]
[398385287,1765567832193,-150.0,0.00013532,2]
[398385288,1765567832202,-150.0,0.00013532,2]
[398385289,1765567832211,-150.0,0.00013532,2]
[398385290,1765567832220,-152.17009784,0.00013532,2]
[398385291,1765567832231,-189.319,0.00013532,2]
[398385292,1765567832241,-172.662,0.00013532,2]
[398385293,1765567832251,-150.0,0.00013532,2]
[398385294,1765567832260,-150.0,0.00013532,2]
[398385295,1765567832269,-151.12815623,0.00013532,2]
[398385296,1765567832278,-159.13180362,0.00013532,2]
[398385297,1765567832288,-150.0,0.00013532,2]
[398385298,1765567832298,-150.0,0.00013532,2]
[398385299,1765567832307,-500.0,0.00013532,2]
[398385300,1765567832317,-150.0,0.00013532,2]
[398385301,1765567832326,-500.0,0.00013532,2]
[398385302,1765567832339,-150.0,0.00013532,2]
[398385303,1765567832349,-500.0,0.00013532,2]
[398385304,1765567832358,-150.0,0.00013532,2]
[398385305,1765567832368,-150.0,0.00013532,2]
[398385306,1765567832377,-150.0,0.00013532,2]
[398385307,1765567832387,-500.0,0.00013532,2]
[398385308,1765567832396,-150.0,0.00013532,2]
[398385309,1765567832406,-1699.0,0.00013568,2]
[398385310,1765567832415,-688.4926362,0.00013576,2]
[398385311,1765567832424,-9464.4847514,0.00013576,2]
[398385312,1765567832433,-450.15916011,0.00013589,2]
[398385313,1765567832443,-500.0,0.00013589,2]
[398385314,1765567832453,-500.0,0.00013589,2]
[398385315,1765567832463,-500.0,0.00013589,2]
[398385316,1765567832471,-500.0,0.00013589,2]
[398385317,1765567832480,-500.0,0.00013589,2]
[398385318,1765567832489,-458.0,0.00013589,2]
[398385319,1765567832499,-500.0,0.00013589,2]
[398385320,1765567832509,-500.0,0.00013589,2]
[398385321,1765567832519,-500.0,0.00013589,2]
[398385322,1765567832528,-491.8555183,0.00013589,2]
[398385323,1765567832538,-500.0,0.00013589,2]
[398385324,1765567832552,-499.56937459,0.00013589,2]
[398385325,1765567832561,-206.30326652,0.00013589,2]
[398385326,1765567832570,-500.0,0.00013589,2]
[398385327,1765567832582,-272.08429356,0.00013589,2]
[398385328,1765567832591,-574.12855637,0.0001359,2]
[398385329,1765567832600,-500.0,0.0001359,2]
[398385330,1765567832609,-500.0,0.0001359,2]
[398385331,1765567832618,-500.0,0.0001359,2]
[398385332,1765567832627,-500.0,0.0001359,2]
[398385333,1765567832636,-500.0,0.0001359,2]
[398385334,1765567832645,-500.0,0.0001359,2]
[398385335,1765567832655,-500.0,0.0001359,2]
[398385336,1765567832664,-500.0,0.0001359,2]
[398385337,1765567832674,-500.0,0.0001359,2]
[398385338,1765567832683,-500.0,0.0001359,2]
[398385339,1765567832693,-500.0,0.0001359,2]
[398385340,1765567832704,-289.63544734,0.00013597,2]
[398385341,1765567832713,-29293.38355457,0.00013598,2]
[398385342,1765567832807,-567.45196851,0.00012375,2]
[398385343,1765567832818,-875.89904586,0.00012375,2]
[398385347,1765567837889,-3556.64898563,0.00012375,2]
[398385348,1765567837898,-20737.37459288,0.00013598,2]
[398385349,1765567837934,-920.0098551,0.00013598,2]
[398385350,1765567837990,-625.58105007,0.00013598,2]
[398385370,1765567840043,-671.77936835,0.00013598,2]
[398385372,1765567840054,-1206.99596856,0.00013598,2]
[398385375,1765567840066,-30592.90438003,0.00013598,2]
[398385377,1765567840077,-13540.67942917,0.00013598,2]
[398385379,1765567840088,-5618.83711693,0.00013598,2]
[398385471,1765567843198,-330.0,0.00013489,2]
[398385472,1765567845989,-823.72127738,0.00013489,2]
[398385473,1765567846000,-8399.61393834,0.00013489,2]
[398385474,1765567846010,-7580.15975961,0.00013598,2]
[398385475,1765567846044,-21619.10062939,0.00013598,2]
[398385476,1765567846166,-31.56565122,0.00013598,2]
[398385477,1765567892745,150.0,7.108e-05,2]
[398385478,1765567893154,208.32,7.754e-05,2]
[398385479,1765567893563,312.48,8.401e-05,2]
[398385480,1765567972944,150.0,7.114e-05,2]
[398385481,1765567973367,191.25,7.761e-05,2]
[398385482,1765567973788,286.87,8.408e-05,2]
[398385484,1765568055977,150.0,7.598e-05,2]
[398385485,1765568056421,212.0,8.289e-05,2]
[398385486,1765568139895,150.0,7.973e-05,2]
[398385487,1765568221666,150.0,7.934e-05,2]
[398385488,1765568246451,5000.0,8.56e-05,2]
[398385489,1765568269639,5000.0,8.56e-05,2]
[398385490,1765568283675,181.82,8.551e-05,2]
[398385491,1765568283958,181.81,8.551e-05,2]
[398385492,1765568291886,3002.98511244,8.56e-05,2]
[398385493,1765568302946,150.0,7.592e-05,2]
[398385494,1765568303361,229.07,8.283e-05,2]
[398385495,1765568389515,150.0,7.573e-05,2]
[398385496,1765568389922,219.42,8.261e-05,2]
[398385501,1765568470813,150.0,7.592e-05,2]
[398385502,1765568471017,210.02,8.282e-05,2]
[398385503,1765568551529,150.0,7.571e-05,2]
[398385504,1765568551927,200.85,8.259e-05,2]
[398385505,1765568631580,150.0,7.62e-05,2]
[398385506,1765568631987,191.92,8.313e-05,2]
[398385507,1765568713305,150.0,7.677e-05,2]
[398385508,1765568713712,183.22,8.375e-05,2]
[398385509,1765568791945,150.0,7.017e-05,2]
[398385510,1765568792383,174.74,7.655e-05,2]
[398385511,1765568793307,262.1,8.293e-05,2]
[398385512,1765568872587,150.0,6.96e-05,2]
[398385513,1765568873007,163.62,7.593e-05,2]
[398385514,1765568873439,245.42,8.226e-05,2]
[398385518,1765568950512,150.0,6.962e-05,2]
[398385519,1765568951380,235.2,7.595e-05,2]
[398385520,1765568951802,352.79,8.228e-05,2]
[398385521,1765568958540,-2104.61219944,8.753e-05,2]
[398385522,1765568958559,-775.47346642,8.841e-05,2]
[398385523,1765568963086,-4224.52653358,8.841e-05,2]
[398385524,1765568963110,-470.39,8.86e-05,2]
[398385525,1765568963137,-150.0,8.94e-05,2]
[398385526,1765568963159,-545.0,8.95e-05,2]
[398385527,1765568963181,-169.7046497,9.107e-05,2]
[398385528,1765568963206,-587.99,9.493e-05,2]
[398385529,1765568963230,-705.59,0.00010126,2]
[398385530,1765568963253,-786.98355256,0.0001042,2]
[398385531,1765568963275,-300.0,0.00010756,2]
[398385532,1765568963299,-823.19,0.00010759,2]
[398385533,1765568963320,-177.0,0.0001094,2]
[398385534,1765568963511,-167.862668,0.00011108,2]
[398385535,1765568963540,-940.78,0.00011392,2]
[398385536,1765568963561,-480.0,0.00011569,2]
[398385537,1765568963583,-154.0,0.00011569,2]
[398385538,1765568963603,-786.98355256,0.0001157,2]
[398385539,1765568963624,-420.0,0.00011823,2]
[398385540,1765568963646,-761.05941925,0.00012025,2]
[398385541,1765568971115,-297.32058075,0.00012025,2]
[398385542,1765568971141,-74.56513007,0.00012658,2]
[398385543,1765569029999,150.0,7.631e-05,2]
[398385544,1765569030422,150.0,8.324e-05,2]
[398385564,1765569031951,-150.0,9.018e-05,2]
[398385566,1765569031960,-195.54,9.712e-05,2]
[398385568,1765569031969,-244.42,0.00010406,2]
[398385569,1765569031978,-599.0,0.00012658,2]
[398385570,1765569031988,-786.98355256,0.0001272,2]
[398385572,1765569031998,-300.0,0.00012899,2]
[398385574,1765569032008,-300.0,0.00012899,2]
[398385576,1765569032017,-156.0,0.00012899,2]
[398385578,1765569032026,-300.0,0.00012899,2]
[398385580,1765569032036,-8651.73641003,0.000129,2]
[398385582,1765569032045,-5904.84163745,0.000129,2]
[398385584,1765569032056,-16960.33142529,0.000129,2]
[398385622,1765569038108,-293.31,0.00011099,2]
[398385624,1765569038118,-342.19,0.00011793,2]
[398385626,1765569038127,-391.08,0.00012487,2]
[398385628,1765569038137,-258.54652955,0.00012899,2]
[398385630,1765569038147,-3331.93675247,0.000129,2]
[398385632,1765569038163,-340.33332483,0.000129,2]
[398385639,1765569038217,-15982.82402967,0.000129,2]
[398385652,1765569040307,-1444.05283299,0.000129,2]
[398385653,1765569040363,-304.127,0.000129,2]
[398385654,1765569040374,-1119.50542007,0.000129,2]
[398385655,1765569040415,-73971.0246041,0.000129,2]
[398385656,1765569040426,-226362.34938379,0.000129,2]
[398385667,1765569043130,-369.75391155,0.000129,2]
[398385668,1765569043142,-10313.11202671,0.000129,2]
[398385669,1765569043184,-1318.70184405,0.000129,2]
[398385670,1765569043196,-40044.4592416,0.000129,2]
[398385671,1765569043288,-3040.92075901,0.000129,2]
[398385673,1765569046111,-702.23462972,0.000129,2]
[398385674,1765569046123,-2583.70658444,0.000129,2]
[398385675,1765569046163,-6791.94900133,0.000129,2]
[398385676,1765569046217,-6929.59063587,0.000129,2]
[398385677,1765569046271,-25826.29,0.000129,2]
[398385678,1765569105704,161.41,7.004e-05,2]
[398385679,1765569106218,322.81,7.64e-05,2]
[398385680,1765569106937,484.22,8.277e-05,2]
[398385771,1765569186470,150.0,6.973e-05,2]
[398385772,1765569186863,298.16,7.607e-05,2]
[398385773,1765569187270,447.24,8.241e-05,2]
[398385774,1765569268561,150.0,7.284e-05,2]
[398385775,1765569268970,275.37,7.947e-05,2]
[398385777,1765569352167,150.0,7.176e-05,2]
[398385778,1765569352589,264.54,7.829e-05,2]
[398385779,1765569352989,396.81,8.481e-05,2]
[398385780,1765569432213,150.0,7.127e-05,2]
[398385781,1765569432636,243.89,7.775e-05,2]
[398385782,1765569433073,365.83,8.423e-05,2]
[398385784,1765569515925,150.0,7.135e-05,2]
[398385785,1765569516330,224.55,7.784e-05,2]
[398385786,1765569516741,336.82,8.433e-05,2]
[398385789,1765569595721,150.0,7.482e-05,2]
[398385790,1765569596474,206.44,8.162e-05,2]
[398385794,1765569675588,150.0,7.573e-05,2]
[398385795,1765569675993,205.01,8.262e-05,2]
[398385796,1765569757406,150.0,7.547e-05,2]
[398385797,1765569757815,207.25,8.233e-05,2]
[398385798,1765569838628,150.0,7.546e-05,2]
[398385799,1765569838696,206.2,8.232e-05,2]
[398385803,1765569919365,150.0,7.567e-05,2]
[398385804,1765569919767,201.29,8.254e-05,2]
[398385805,1765569964574,1225.3,0.00014,30]
[398385807,1765569999573,150.0,7.528e-05,2]
[398385808,1765569999959,204.5,8.212e-05,2]
[398385809,1765570015127,-313.72046547,8.667e-05,2]
[398385810,1765570036072,-3843.31003794,8.667e-05,2]
[398385811,1765570038091,-842.96949659,8.667e-05,2]
[398385812,1765570038111,-544.0,8.843e-05,2]
[398385813,1765570038133,-306.74,8.896e-05,2]
[398385814,1765570038153,-150.0,8.897e-05,2]
[398385815,1765570038174,-231.29762535,9.581e-05,2]
[398385816,1765570040334,1544.57660791,8.56e-05,2]
[398385817,1765570048081,-177.69237465,9.581e-05,2]
[398385818,1765570048103,-54.67404042,0.00010265,2]
[398385819,1765570082352,150.0,7.638e-05,2]
[398385820,1765570082760,198.77,8.332e-05,2]
[398385821,1765570085628,156.32,8.551e-05,2]
[398385822,1765570085969,156.32,8.551e-05,2]
[398385823,1765570086227,156.29,8.551e-05,2]
[398385824,1765570146144,-300.0,8.936e-05,2]
[398385825,1765570146167,-298.16,9.026e-05,2]
[398385826,1765570146187,-170.02864347,9.107e-05,2]
[398385827,1765570146209,-397.54,9.721e-05,2]
[398385828,1765570146231,-150.0,0.00010281,2]
[398385829,1765570146252,-473.94014924,0.00010296,2]
[398385830,1765570146274,-496.93,0.00010415,2]
[398385831,1765570146295,-1200.0,0.00010881,2]
[398385832,1765570146317,-596.31,0.00011109,2]
[398385833,1765570146337,-473.94014924,0.00011416,2]
[398385834,1765570146356,-238.0,0.00011558,2]
[398385835,1765570146376,-300.0,0.00011558,2]
[398385836,1765570146396,-300.0,0.00011559,2]
[398385837,1765570146418,-185.18697294,0.00011631,7]
[398385838,1765570160069,-271.23393748,0.00011631,7]
[398385839,1765570160091,-1200.0,0.00011969,2]
[398385840,1765570160110,-163.05400651,0.00012206,2]
[398385841,1765570160129,-104.60438385,0.00012281,2]
[398385842,1765570162393,150.0,7.638e-05,2]
[398385843,1765570163155,150.0,8.333e-05,2]
[398385903,1765570232183,-216.53,9.027e-05,2]
[398385905,1765570232194,-288.71,9.722e-05,2]
[398385907,1765570232205,-360.89,0.00010416,2]
[398385909,1765570232215,-433.07,0.0001111,2]
[398385911,1765570232226,-505.25,0.00011805,2]
[398385914,1765570232240,-72.39561615,0.00012281,2]
[398385915,1765570232249,-577.43,0.00012499,2]
[398385917,1765570232259,-300.0,0.00012536,2]
[398385920,1765570232270,-473.94014924,0.00012537,2]